fUSD/lending_fUSD_20251128
["ID","MTS","AMOUNT","RATE_DAILY","PERIOD"]
[395037136,1764359439768,-500.0,0.00015789,2]
[395037138,1764359439777,-500.0,0.00015789,2]
[395037140,1764359439786,-500.0,0.00015789,2]
[395037142,1764359439795,-500.0,0.00015789,2]
[395037144,1764359439804,-500.0,0.00015789,2]
[395037146,1764359439814,-500.0,0.00015789,2]
[395037148,1764359439823,-500.0,0.00015789,2]
[395037150,1764359439832,-500.0,0.00015789,2]
[395037152,1764359439841,-500.0,0.00015789,2]
[395037154,1764359439851,-250.0,0.00015789,2]
[395037156,1764359439860,-500.0,0.00015789,2]
[395037158,1764359439869,-500.0,0.00015789,2]
[395037160,1764359439879,-500.0,0.00015789,2]
[395037162,1764359439888,-500.0,0.00015789,2]
[395037164,1764359439897,-500.0,0.00015789,2]
[395037165,1764359439907,-500.0,0.00015789,2]
[395037168,1764359439916,-500.0,0.00015789,2]
[395037170,1764359439926,-500.0,0.00015789,2]
[395037172,1764359439935,-500.0,0.00015789,2]
[395037174,1764359439944,-500.0,0.00015789,2]
[395037176,1764359439953,-500.0,0.00015789,2]
[395037178,1764359439963,-500.0,0.00015789,2]
[395037180,1764359439972,-500.0,0.00015789,2]
[395037182,1764359439981,-500.00000001,0.00015789,2]
[395037183,1764359439991,-464.28,0.00015789,2]
[395037186,1764359440000,-845.86721143,0.00015821,2]
[395037187,1764359440009,-947.03331792,0.00015882,2]
[395037190,1764359440019,-180.47203465,0.0001589,2]
[395037192,1764359440028,-500.0,0.0001589,2]
[395037194,1764359440038,-500.0,0.0001589,2]
[395037196,1764359440049,-150.0,0.00015895,2]
[395037198,1764359440058,-1655.1336322,0.00015906,2]
[395037200,1764359440067,-177.53,0.00015924,2]
[395037202,1764359440076,-947.03331792,0.00016009,2]
[395037204,1764359440085,-1655.1336322,0.0001603,2]
[395037206,1764359440094,-464.28,0.00016063,2]
[395037208,1764359440104,-947.03331792,0.00016137,2]
[395037210,1764359440113,-151.0,0.00016148,2]
[395037211,1764359440123,-220.0,0.00016148,2]
[395037213,1764359440132,-500.0,0.00016148,2]
[395037215,1764359440141,-151.0,0.00016148,2]
[395037217,1764359440150,-151.0,0.00016148,2]
[395037219,1764359440160,-201.932861,0.00016148,2]
[395037221,1764359440170,-500.0,0.00016148,2]
[395037224,1764359440179,-151.0,0.00016148,2]
[395037225,1764359440189,-151.0,0.00016148,2]
[395037227,1764359440198,-500.0,0.00016148,2]
[395037230,1764359440209,-553.64373807,0.00016148,2]
[395037231,1764359440218,-151.0,0.00016148,2]
[395037233,1764359440227,-500.0,0.00016148,2]
[395037235,1764359440236,-151.0,0.00016148,2]
[395037237,1764359440246,-151.0,0.00016148,2]
[395037240,1764359440255,-500.0,0.00016148,2]
[395037242,1764359440265,-151.0,0.00016148,2]
[395037244,1764359440274,-500.0,0.00016148,2]
[395037245,1764359440283,-151.0,0.00016148,2]
[395037248,1764359440294,-500.0,0.00016148,2]
[395037250,1764359440303,-151.0,0.00016148,2]
[395037252,1764359440313,-151.0,0.00016148,2]
[395037254,1764359440322,-300.0,0.00016148,2]
[395037255,1764359440331,-500.0,0.00016148,2]
[395037258,1764359440340,-151.0,0.00016148,2]
[395037260,1764359440350,-151.0,0.00016148,2]
[395037262,1764359440360,-500.0,0.00016148,2]
[395037264,1764359440370,-500.0,0.00016148,2]
[395037266,1764359440379,-500.0,0.00016148,2]
[395037268,1764359440387,-500.0,0.00016148,2]
[395037270,1764359440397,-250.0,0.00016148,2]
[395037272,1764359440407,-250.0,0.00016148,2]
[395037274,1764359440416,-250.0,0.00016148,2]
[395037275,1764359440425,-500.0,0.00016148,2]
[395037278,1764359440435,-250.0,0.00016148,2]
[395037280,1764359440444,-500.0,0.00016148,2]
[395037282,1764359440454,-500.0,0.00016148,2]
[395037283,1764359440463,-500.0,0.00016148,2]
[395037286,1764359440472,-500.0,0.00016148,2]
[395037287,1764359440481,-500.0,0.00016148,2]
[395037289,1764359440490,-500.0,0.00016148,2]
[395037291,1764359440499,-500.0,0.00016148,2]
[395037293,1764359440507,-500.0,0.00016148,2]
[395037295,1764359440517,-500.0,0.00016148,2]
[395037297,1764359440526,-500.0,0.00016148,2]
[395037299,1764359440535,-500.0,0.00016148,2]
[395037301,1764359440544,-500.0,0.00016148,2]
[395037303,1764359440552,-500.0,0.00016148,2]
[395037305,1764359440561,-500.0,0.00016148,2]
[395037307,1764359440570,-500.0,0.00016148,2]
[395037309,1764359440584,-500.0,0.00016148,2]
[395037311,1764359440594,-151.0,0.00016148,2]
[395037313,1764359440602,-500.0,0.00016148,2]
[395037315,1764359440612,-500.0,0.00016148,2]
[395037317,1764359440621,-500.0,0.00016148,2]
[395037319,1764359440630,-417.49469939,0.00016148,2]
[395037322,1764359440643,-82.50530061,0.00016148,2]
[395037324,1764359440652,-500.0,0.00016148,2]
[395037326,1764359440663,-474.85831027,0.00016148,2]
[395037449,1764359441828,-25.14168973,0.00016148,2]
[395037451,1764359441838,-500.0,0.00016148,2]
[395037453,1764359441847,-250.0,0.00016148,2]
[395037455,1764359441857,-250.0,0.00016148,2]
[395037457,1764359441866,-250.0,0.00016148,2]
[395037459,1764359441875,-250.0,0.00016148,2]
[395037461,1764359441886,-250.0,0.00016148,2]
[395037463,1764359441895,-250.0,0.00016148,2]
[395037465,1764359441905,-250.0,0.00016148,2]
[395037467,1764359441914,-250.0,0.00016148,2]
[395037469,1764359441923,-250.0,0.00016148,2]
[395037471,1764359441932,-500.0,0.00016148,2]
[395037473,1764359441941,-250.0,0.00016148,2]
[395037475,1764359441950,-500.0,0.00016148,2]
[395037477,1764359441961,-250.0,0.00016148,2]
[395037479,1764359441970,-500.0,0.00016148,2]
[395037481,1764359441979,-250.0,0.00016148,2]
[395037483,1764359441988,-500.0,0.00016148,2]
[395037485,1764359441997,-500.0,0.00016148,2]
[395037487,1764359442006,-500.0,0.00016148,2]
[395037489,1764359442016,-500.0,0.00016148,2]
[395037491,1764359442026,-500.0,0.00016148,2]
[395037494,1764359442036,-267.46074303,0.00016148,2]
[395037495,1764359442046,-1655.1336322,0.00016155,2]
[395037498,1764359442055,-209.0,0.00016167,2]
[395037500,1764359442065,-947.03331792,0.00016264,2]
[395037502,1764359442074,-1655.1336322,0.00016279,2]
[395037504,1764359442083,-500.0,0.00016321,2]
[395037506,1764359442092,-500.0,0.00016321,2]
[395037507,1764359442102,-1000.0,0.00016321,2]
[395037510,1764359442120,-1000.0,0.00016321,2]
[395037513,1764359442132,-1000.0,0.00016321,2]
[395037515,1764359442142,-500.0,0.00016321,2]
[395037517,1764359442153,-500.0,0.00016321,2]
[395037519,1764359442163,-915.16633773,0.00016321,2]
[395037521,1764359442172,-464.28,0.00016337,2]
[395037523,1764359442182,-947.03331792,0.00016391,2]
[395037525,1764359442194,-1655.1336322,0.00016403,2]
[395037527,1764359442204,-404.06953313,0.00016438,2]
[395037529,1764359442214,-168.0,0.00016496,2]
[395037531,1764359442223,-947.03331792,0.00016518,2]
[395037533,1764359442233,-1655.1336322,0.00016527,2]
[395037536,1764359442243,-168.0,0.00016549,2]
[395037537,1764359442253,-464.28,0.00016611,2]
[395037540,1764359442263,-300.0,0.0001663,2]
[395037542,1764359442273,-300.0,0.0001663,2]
[395037544,1764359442282,-250.0,0.0001663,2]
[395037546,1764359442293,-947.03331792,0.00016646,2]
[395037548,1764359442302,-1655.1336322,0.00016652,2]
[395037550,1764359442311,-574.12855637,0.00016696,2]
[395037552,1764359442321,-151.0,0.00016696,2]
[395037554,1764359442331,-355.0,0.00016717,2]
[395037556,1764359442340,-947.03331792,0.00016773,2]
[395037558,1764359442350,-1655.1336322,0.00016776,2]
[395037560,1764359442359,-195.0,0.00016799,2]
[395037562,1764359442368,-250.0,0.00016799,2]
[395037564,1764359442377,-2970.36,0.000168,2]
[395037565,1764359442387,-1680.0,0.00016802,2]
[395037566,1764359442397,-32387.4724966,0.0001683,2]
[395037567,1764359442407,-502.3597061,0.00016868,2]
[395037568,1764359442417,-1500.0,0.00016868,2]
[395037569,1764359442427,-208.2396087,0.00016878,2]
[395037571,1764359442436,-464.32674724,0.00016885,2]
[395037572,1764359442445,-464.25924906,0.000169,2]
[395037574,1764359442455,-947.03331792,0.000169,2]
[395037577,1764359442465,-265.43404615,0.000169,2]
[395037579,1764359442475,-176.9319073,0.000169,2]
[395037582,1764359442484,-1655.1336322,0.000169,2]
[395037584,1764359442494,-512.72445942,0.000169,2]
[395037585,1764359442504,-283.89792798,0.000169,2]
[395037586,1764359442513,-500.0,0.00016973,2]
[395037587,1764359442523,-500.0,0.00016973,2]
[395037588,1764359442532,-258.74257838,0.00016973,2]
[395037589,1764359442561,-241.25742162,0.00016973,2]
[395037590,1764359442571,-500.0,0.00016973,2]
[395037592,1764359442584,-215.35407928,0.00016973,2]
[395037594,1764359442594,-500.0,0.00016973,2]
[395037596,1764359442603,-554.02103469,0.00016973,2]
[395037599,1764359442613,-268.06848757,0.00016973,2]
[395037602,1764359442623,-300.0,0.00016973,2]
[395037604,1764359442632,-203.81467987,0.00016973,2]
[395037606,1764359442641,-199.10787057,0.00016973,2]
[395037608,1764359442651,-150.0,0.00016973,2]
[395037610,1764359442662,-500.0,0.00016973,2]
[395037612,1764359442671,-150.0,0.00016973,2]
[395037614,1764359442681,-500.0,0.00016973,2]
[395037616,1764359442690,-154.68539987,0.0001699,2]
[395037618,1764359442699,-13017.160412,0.00016992,2]
[395037620,1764359442709,-1788.3300895,0.00016994,2]
[395037622,1764359442718,-1058.4033859,0.00016994,2]
[395037624,1764359442727,-49196.2786964,0.00016994,2]
[395037626,1764359442736,-151.0,0.00016997,2]
[395037628,1764359442746,-152.0,0.00016997,2]
[395037630,1764359442755,-152.0,0.00016997,2]
[395037631,1764359442764,-5162.84221739,0.00016999,2]
[395037634,1764359442773,-300.0,0.00016999,2]
[395037636,1764359442783,-300.0,0.00016999,2]
[395037637,1764359442792,-3107.0,0.00017,2]
[395037639,1764359442802,-445494.24073192,0.00017,2]
[395037643,1764359442825,-9347.2832205,0.00017,2]
[395037646,1764359442845,-504.7763269,0.00017,2]
[395037648,1764359442857,-2857.62997339,0.00017,2]
[395037650,1764359442868,-4122.68865531,0.00017,2]
[395037661,1764359442960,-595.0,0.00017,2]
[395037758,1764359443886,-258.2,0.00015934,2]
[395037760,1764359443897,-1148.02575754,0.00015934,2]
[395037762,1764359443907,-113.95946196,0.00017,2]
[395037960,1764359445870,-1120.4,0.00017,2]
[395037962,1764359445882,-2236.0,0.00017,2]
[395037964,1764359445893,-280.87,0.00017,2]
[395037978,1764359446017,-69928.34465931,0.00017,2]
[395037980,1764359446027,-74277.51272453,0.00017,2]
[395037982,1764359446041,-1420.512,0.00017,2]
[395037986,1764359446061,-2185.69647785,0.00017,2]
[395037990,1764359446090,-388.61022709,0.00017,2]
[395037993,1764359446115,-913.22724136,0.00017,2]
[395037995,1764359446126,-2959.39999999,0.00017,2]
[395038260,1764360362153,576.3,0.00013699,2]
[395038408,1764360631802,-150.0,0.00014944,2]
[395038409,1764360631812,-227.85586947,0.00015211,2]
[395038410,1764360631822,-150.0,0.00015288,2]
[395038411,1764360631832,-150.0,0.00015288,2]
[395038412,1764360631841,-150.0,0.00015288,2]
[395038413,1764360631850,-150.0,0.00015288,2]
[395038414,1764360631860,-150.0,0.00015288,2]
[395038415,1764360631869,-150.0,0.00015288,2]
[395038416,1764360631878,-150.0,0.00015288,2]
[395038417,1764360631887,-107.2789031,0.0001531,2]
[395038418,1764360631899,-192.7210969,0.0001531,2]
[395038419,1764360631908,-1200.0,0.0001531,2]
[395038420,1764360631918,-150.0,0.00015311,2]
[395038421,1764360631927,-500.0,0.00015311,2]
[395038422,1764360631937,-500.0,0.00015311,2]
[395038423,1764360631946,-1249.0,0.00015319,2]
[395038424,1764360631956,-1200.33,0.00015342,2]
[395038425,1764360631965,-166.66,0.00015364,2]
[395038426,1764360631974,-227.85586945,0.00015401,2]
[395038428,1764360631984,-250.0,0.0001545,2]
[395038430,1764360631993,-200.0,0.00015485,2]
[395038432,1764360632006,-82851.8124845,0.00015588,2]
[395038434,1764360632017,-87877.20779713,0.00015588,2]
[395038436,1764360632043,-407.82349986,0.00015588,2]
[395038437,1764360632054,-4970.40232126,0.00015588,2]
[395038438,1764360632066,-328.4750411,0.00015588,2]
[395038439,1764360632108,-1379.71958185,0.00015588,2]
[395038440,1764360632119,-3304.16149517,0.00015588,2]
[395038441,1764360632130,-5378.53161582,0.00015588,2]
[395038442,1764360632141,-846.65965006,0.00015588,2]
[395038443,1764360632155,-1626.5616646,0.00015588,2]
[395038444,1764360632209,-3164.95566886,0.00015588,2]
[395038450,1764360637771,-552.46141363,0.00015588,2]
[395038451,1764360637782,-1580.29999603,0.00015588,2]
[395038452,1764360637794,-19097.9035597,0.00015588,2]
[395038453,1764360637805,-356.39561183,0.00015588,2]
[395038454,1764360637840,-692.42360236,0.00015588,2]
[395038455,1764360637884,-138184.44362359,0.00015588,2]
[395038456,1764360637936,-76850.76707265,0.00015588,2]
[395038457,1764360637945,-227.85586945,0.0001559,2]
[395038458,1764360637955,-151.0,0.00015594,2]
[395038459,1764360637964,-193.54047367,0.00015594,2]
[395038460,1764360637974,-151.0,0.00015594,2]
[395038461,1764360637983,-294.90205391,0.00015673,2]
[395038462,1764360637993,-534.19795999,0.00015673,2]
[395038465,1764360638005,-500.0,0.00015673,2]
[395038466,1764360638015,-500.0,0.00015673,2]
[395038468,1764360638024,-500.0,0.00015673,2]
[395038470,1764360638034,-500.0,0.00015673,2]
[395038472,1764360638045,-151.0,0.00015678,2]
[395038475,1764360638055,-200.0,0.00015679,2]
[395038476,1764360638065,-151.0,0.00015686,2]
[395038478,1764360638074,-5162.84221739,0.00015687,2]
[395038480,1764360638085,-380.526,0.00015687,2]
[395038482,1764360638094,-166.66,0.00015687,2]
[395038484,1764360638104,-300.0,0.00015688,2]
[395038486,1764360638113,-271.54683821,0.0001569,2]
[395038488,1764360638123,-372.0,0.00015697,2]
[395038490,1764360638132,-322.28095059,0.00015739,2]
[395038492,1764360638142,-358.0,0.00015739,2]
[395038494,1764360638151,-221.0,0.00015747,2]
[395038496,1764360638160,-387.14794084,0.00015771,2]
[395038498,1764360638170,-508.50952766,0.0001579,2]
[395038500,1764360638179,-500.0,0.0001579,2]
[395038502,1764360638188,-500.0,0.0001579,2]
[395038503,1764360638198,-500.0,0.0001579,2]
[395038505,1764360638207,-507.29775067,0.0001579,2]
[395038508,1764360638216,-500.0,0.0001579,2]
[395038510,1764360638226,-500.0,0.0001579,2]
[395038512,1764360638235,-378.97629276,0.0001579,2]
[395038514,1764360638245,-500.0,0.0001589,2]
[395038516,1764360638254,-500.0,0.0001589,2]
[395038518,1764360638263,-223.40328839,0.0001589,2]
[395038519,1764360638273,-351.21079251,0.000159,2]
[395038521,1764360638282,-351.21079248,0.000159,2]
[395038523,1764360638292,-166.66,0.00016011,2]
[395038525,1764360638301,-5800.67,0.00016096,2]
[395038528,1764360638311,-150.0,0.00016137,2]
[395038530,1764360638321,-4203.158933,0.00016148,2]
[395038563,1764360638637,-448.35,0.00016149,2]
[395038568,1764360638680,-386.87667747,0.00016149,2]
[395038570,1764360638689,-267.46074303,0.00016149,2]
[395038572,1764360638700,-553.64373807,0.00016149,2]
[395038574,1764360638709,-151.0,0.00016149,2]
[395038576,1764360638719,-500.0,0.00016149,2]
[395038578,1764360638729,-500.0,0.00016149,2]
[395038580,1764360638739,-500.0,0.00016149,2]
[395038582,1764360638748,-500.0,0.00016149,2]
[395038584,1764360638757,-500.0,0.00016149,2]
[395038586,1764360638767,-500.0,0.00016149,2]
[395038587,1764360638776,-500.0,0.00016149,2]
[395038589,1764360638785,-500.0,0.00016149,2]
[395038591,1764360638795,-500.0,0.00016149,2]
[395038594,1764360638804,-500.0,0.00016149,2]
[395038595,1764360638813,-500.0,0.00016149,2]
[395038598,1764360638823,-500.0,0.00016149,2]
[395038599,1764360638832,-151.0,0.00016149,2]
[395038601,1764360638842,-500.0,0.00016149,2]
[395038603,1764360638851,-500.0,0.00016149,2]
[395038605,1764360638860,-151.0,0.00016149,2]
[395038607,1764360638869,-500.0,0.00016149,2]
[395038609,1764360638879,-151.0,0.00016149,2]
[395038611,1764360638888,-151.0,0.00016149,2]
[395038612,1764360638898,-151.0,0.00016149,2]
[395038613,1764360638907,-151.0,0.00016149,2]
[395038614,1764360638917,-268.0,0.00016149,2]
[395038615,1764360638926,-500.0,0.00016149,2]
[395038616,1764360638935,-220.0,0.00016149,2]
[395038617,1764360638945,-500.0,0.00016149,2]
[395038618,1764360638955,-500.0,0.00016149,2]
[395038619,1764360638964,-500.0,0.00016149,2]
[395038620,1764360638973,-500.0,0.00016149,2]
[395038621,1764360638984,-500.0,0.00016149,2]
[395038622,1764360638993,-500.0,0.00016149,2]
[395038623,1764360639006,-151.0,0.00016149,2]
[395038624,1764360639016,-500.0,0.00016149,2]
[395038625,1764360639026,-500.0,0.00016149,2]
[395038626,1764360639036,-300.0,0.00016149,2]
[395038627,1764360639047,-1000.0,0.00016221,2]
[395038628,1764360639058,-1000.0,0.00016221,2]
[395038629,1764360639068,-500.0,0.00016221,2]
[395038630,1764360639080,-412.05635369,0.00016221,2]
[395038631,1764360639092,-166.66,0.00016334,2]
[395038632,1764360639102,-448.35,0.00016423,2]
[395038633,1764360639113,-250.0,0.00016438,2]
[395038634,1764360639124,-600.0,0.00016438,2]
[395038635,1764360639134,-3403.35,0.00016438,2]
[395038636,1764360639145,-166.66,0.00016658,2]
[395038637,1764360639156,-448.35,0.00016697,2]
[395038638,1764360639168,-220.0,0.00016697,2]
[395038639,1764360639178,-225.0,0.00016712,2]
[395038640,1764360639192,-600.0,0.00016712,2]
[395038641,1764360639203,-1000.0,0.00016768,2]
[395038642,1764360639214,-500.0,0.00016768,2]
[395038643,1764360639225,-250.0,0.00016817,2]
[395038644,1764360639236,-1355.0,0.00016835,2]
[395038645,1764360639247,-397.93649922,0.000169,2]
[395038646,1764360639257,-793.4158359,0.000169,2]
[395038647,1764360639268,-703.81746772,0.000169,2]
[395038648,1764360639278,-176.93190727,0.000169,2]
[395038649,1764360639289,-221.19503845,0.000169,2]
[395038650,1764360639299,-222.6883512,0.00016921,2]
[395038651,1764360639310,-448.35,0.00016971,2]
[395038652,1764360639320,-500.0,0.00016973,2]
[395038653,1764360639330,-215.35407928,0.00016973,2]
[395038654,1764360639341,-554.02103469,0.00016973,2]
[395038655,1764360639351,-500.0,0.00016973,2]
[395038656,1764360639360,-268.06848757,0.00016973,2]
[395038657,1764360639369,-241.25742162,0.00016973,2]
[395038658,1764360639378,-500.0,0.00016973,2]
[395038659,1764360639388,-500.0,0.00016973,2]
[395038660,1764360639397,-521.32175814,0.00016973,2]
[395038661,1764360639407,-500.75035293,0.00016973,2]
[395038662,1764360639416,-500.0,0.00016973,2]
[395038663,1764360639426,-150.0,0.00016973,2]
[395038664,1764360639435,-150.0,0.00016973,2]
[395038665,1764360639444,-150.0,0.00016973,2]
[395038666,1764360639453,-150.0,0.00016973,2]
[395038667,1764360639463,-150.0,0.00016973,2]
[395038668,1764360639472,-150.0,0.00016973,2]
[395038669,1764360639482,-150.0,0.00016973,2]
[395038670,1764360639491,-150.0,0.00016973,2]
[395038671,1764360639501,-500.0,0.00016973,2]
[395038672,1764360639510,-150.0,0.00016973,2]
[395038673,1764360639520,-500.0,0.00016973,2]
[395038674,1764360639529,-166.66,0.00016981,2]
[395038675,1764360639539,-600.0,0.00016986,2]
[395038676,1764360639550,-150.0,0.00016986,2]
[395038677,1764360639559,-154.08308117,0.00016986,2]
[395038678,1764360639570,-150.0,0.00016986,2]
[395038679,1764360639579,-150.0,0.00016986,2]
[395038680,1764360639588,-154.68539987,0.0001699,2]
[395038681,1764360639598,-152.0,0.00016997,2]
[395038682,1764360639608,-152.0,0.00016997,2]
[395038683,1764360639617,-1058.4033859,0.00016997,2]
[395038684,1764360639626,-50279.6000904,0.00016997,2]
[395038685,1764360639638,-10547.8280397,0.00016997,2]
[395038686,1764360639647,-151.0,0.00016997,2]
[395038687,1764360639657,-231.9921206,0.00016999,2]
[395038688,1764360639666,-300.290404,0.00016999,2]
[395038689,1764360639676,-300.0,0.00016999,2]
[395038690,1764360639685,-3104.0,0.00017,2]
[395038691,1764360639696,-86642.2837766,0.00017,2]
[395038692,1764360639710,-10085.51520127,0.00017,2]
[395038693,1764360639722,-1031.65750244,0.00017,2]
[395038696,1764360640391,-258.69903957,0.00017,2]
[395038697,1764360640402,-466.63984997,0.00017,2]
[395038698,1764360640422,-1932.90641281,0.00017,2]
[395038699,1764360640435,-716.37,0.00017,2]
[395038700,1764360640460,-2446.72347121,0.00017,2]
[395038701,1764360640471,-16401.53480594,0.00017,2]
[395038702,1764360640494,-524626.03603148,0.00017,2]
[395038704,1764360640540,-4884.69630524,0.00017,2]
[395038705,1764360640555,-6738.42206641,0.00017,2]
[395038706,1764360640567,-604.0,0.00017,2]
[395038707,1764360640592,-342.108,0.00017,2]
[395038708,1764360642868,-351.21079248,0.000159,2]
[395038709,1764360642878,-39178.50674522,0.00017,2]
[395038710,1764360642889,-457.49703547,0.00017,2]
[395038711,1764360642929,-563.8722431,0.00017,2]
[395038712,1764360642987,-482.7097,0.00017,2]
[395038713,1764360643043,-673.3310658,0.00017,2]
[395038714,1764360643151,-799.77282,0.00017,2]
[395038777,1764360646269,-165.142343,0.00016897,2]
[395038779,1764360646278,-2230.82644525,0.00017,2]
[395038781,1764360646290,-4598.90273949,0.00017,2]
[395038783,1764360646300,-14656.09726051,0.00017,2]
[395038786,1764360646311,-455.0,0.00017,2]
[395038788,1764360646323,-1116.0,0.00017,2]
[395038790,1764360646334,-596.87113101,0.00017,2]
[395038792,1764360646348,-765.50949235,0.00017,2]
[395038793,1764360646359,-894.05989,0.00017,2]
[395038795,1764360646370,-69240.73012182,0.00017,2]
[395038798,1764360646389,-8127.27471154,0.00017,2]
[395038800,1764360646400,-8328.41300003,0.00017,2]
[395038804,1764360646537,-1843.18451919,0.00017,2]
[395038805,1764360646548,-988.19869515,0.00017,2]
[395038806,1764360646560,-1137.452036,0.00017,2]
[395038807,1764360646575,-37823.28948354,0.00017,2]
[395038808,1764360646586,-1331.985,0.00017,2]
[395038809,1764360646597,-1020.3,0.00017,2]
[395038912,1764361836219,-167.12,0.000149,2]
[395038913,1764361836228,-182.01310552,0.00015188,2]
[395038914,1764361836238,-150.0,0.000152,2]
[395038915,1764361836248,-150.0,0.00015235,2]
[395038916,1764361836257,-827.0,0.00015287,2]
[395038917,1764361836266,-300.0,0.00015287,2]
[395038918,1764361836275,-300.0,0.00015287,2]
[395038919,1764361836284,-1200.0,0.00015287,2]
[395038920,1764361836294,-150.0,0.00015288,2]
[395038921,1764361836304,-150.0,0.00015288,2]
[395038922,1764361836315,-150.0,0.00015288,2]
[395038923,1764361836325,-150.0,0.00015288,2]
[395038924,1764361836334,-150.0,0.00015288,2]
[395038925,1764361836345,-150.0,0.00015288,2]
[395038926,1764361836354,-150.0,0.00015288,2]
[395038927,1764361836363,-150.0,0.00015288,2]
[395038928,1764361836372,-200.0,0.00015315,2]
[395038929,1764361836383,-304.421,0.00015341,2]
[395038930,1764361836392,-300.0,0.00015341,2]
[395038931,1764361836402,-10258.73762782,0.00015342,2]
[395038932,1764361836414,-907.39497235,0.00015342,2]
[395038933,1764361836440,-38969.04739983,0.00015342,2]
[395038935,1764361836450,-500.0,0.00015342,2]
[395038937,1764361836460,-315.20269062,0.00015373,2]
[395038939,1764361836469,-500.0,0.00015373,2]
[395038941,1764361836478,-500.0,0.00015373,2]
[395038942,1764361836487,-500.0,0.00015373,2]
[395038944,1764361836496,-500.0,0.00015373,2]
[395038946,1764361836506,-999.0,0.00015449,3]
[395038948,1764361836515,-224.84754658,0.00015527,2]
[395038950,1764361836524,-927.83040483,0.00015527,2]
[395038952,1764361836533,-711.23,0.00015544,2]
[395038954,1764361836543,-150.0,0.00015571,2]
[395038956,1764361836552,-580.65522907,0.00015573,2]
[395038959,1764361836560,-500.0,0.00015573,2]
[395038962,1764361836569,-310.4715249,0.00015573,2]
[395038965,1764361836579,-514.14229735,0.00015573,2]
[395038967,1764361836589,-500.0,0.00015573,2]
[395038970,1764361836599,-200.0,0.00015579,2]
[395038973,1764361836608,-500.0,0.00015581,2]
[395038976,1764361836617,-558.16613137,0.00015581,2]
[395038979,1764361836626,-500.0,0.00015581,2]
[395038982,1764361836635,-558.16613137,0.00015581,2]
[395038985,1764361836645,-500.0,0.00015581,2]
[395038988,1764361836654,-558.16613137,0.00015581,2]
[395038990,1764361836663,-500.0,0.00015581,2]
[395038992,1764361836672,-500.0,0.00015581,2]
[395038994,1764361836681,-500.0,0.00015581,2]
[395038996,1764361836691,-558.16613137,0.00015581,2]
[395038998,1764361836700,-589.72796113,0.00015581,2]
[395039000,1764361836708,-558.16613137,0.00015581,2]
[395039002,1764361836717,-500.0,0.00015581,2]
[395039004,1764361836726,-558.16613137,0.00015581,2]
[395039006,1764361836735,-500.0,0.00015581,2]
[395039008,1764361836745,-558.16613137,0.00015581,2]
[395039010,1764361836754,-500.0,0.00015581,2]
[395039012,1764361836763,-558.16613137,0.00015581,2]
[395039014,1764361836772,-558.16613137,0.00015581,2]
[395039016,1764361836781,-500.0,0.00015581,2]
[395039018,1764361836790,-558.16613137,0.00015581,2]
[395039020,1764361836799,-558.16613137,0.00015581,2]
[395039022,1764361836809,-500.0,0.00015581,2]
[395039024,1764361836818,-558.16613137,0.00015581,2]
[395039026,1764361836827,-288.32598867,0.00015581,2]
[395039028,1764361836835,-558.16613137,0.00015581,2]